[Event "*** Titled Tuesday Blitz"]
[Site "Chess.com"]
[Date "2020.05.19"]
[Round "9"]
[White "Harsha_Bharathakoti"]
[Black "JustinWang1234"]
[Result "1/2-1/2"]
[WhiteElo "2753"]
[BlackElo "2606"]
[TimeControl "180+1"]
[EndTime "13:48:30 PDT"]
[Termination "Game drawn by stalemate"]

1. f4 {[%clk 0:02:59.7]} 1... d5 {[%clk 0:02:58.7]} 2. Nf3 {[%clk 0:02:59.3]}
2... Nf6 {[%clk 0:02:59.1]} 3. g3 {[%clk 0:02:59.5]} 3... b6 {[%clk 0:02:58.2]}
4. Bg2 {[%clk 0:02:59.6]} 4... Bb7 {[%clk 0:02:58.4]} 5. O-O {[%clk 0:03:00.1]}
5... c5 {[%clk 0:02:58.7]} 6. d3 {[%clk 0:02:58.8]} 6... g6 {[%clk 0:02:58.2]}
7. Qe1 {[%clk 0:02:40.7]} 7... Bg7 {[%clk 0:02:57]} 8. Ne5 {[%clk 0:02:30.2]}
8... Nfd7 {[%clk 0:02:49.9]} 9. Nxd7 {[%clk 0:02:20]} 9... Qxd7 {[%clk
0:02:50.8]} 10. e4 {[%clk 0:02:17.7]} 10... O-O {[%clk 0:02:36.4]} 11. Nc3
{[%clk 0:02:00]} 11... e6 {[%clk 0:02:27.4]} 12. e5 {[%clk 0:01:47.1]} 12... f6
{[%clk 0:02:24.6]} 13. exf6 {[%clk 0:01:45.9]} 13... Bxf6 {[%clk 0:02:25.5]} 14.
Nd1 {[%clk 0:01:31.7]} 14... Nc6 {[%clk 0:02:24.2]} 15. Ne3 {[%clk 0:01:30.6]}
15... Rae8 {[%clk 0:02:16.9]} 16. c3 {[%clk 0:01:29.5]} 16... Bg7 {[%clk
0:02:11.4]} 17. Qe2 {[%clk 0:01:22.5]} 17... d4 {[%clk 0:02:09.4]} 18. Nd1
{[%clk 0:01:02.4]} 18... dxc3 {[%clk 0:02:04.5]} 19. bxc3 {[%clk 0:01:01.9]}
19... e5 {[%clk 0:02:04.7]} 20. Qc2 {[%clk 0:00:57.1]} 20... Na5 {[%clk
0:01:48.6]} 21. Bxb7 {[%clk 0:00:51]} 21... Qxb7 {[%clk 0:01:49.5]} 22. Nf2
{[%clk 0:00:49.7]} 22... c4 {[%clk 0:01:27.1]} 23. Be3 {[%clk 0:00:26.4]} 23...
exf4 {[%clk 0:00:52.6]} 24. Bxf4 {[%clk 0:00:26.4]} 24... cxd3 {[%clk
0:00:42.7]} 25. Qxd3 {[%clk 0:00:22.4]} 25... Rd8 {[%clk 0:00:41.9]} 26. Qc2
{[%clk 0:00:21.1]} 26... Nc4 {[%clk 0:00:36.6]} 27. Rad1 {[%clk 0:00:17]} 27...
Qc6 {[%clk 0:00:20.4]} 28. Qe4 {[%clk 0:00:16.9]} 28... Qxe4 {[%clk 0:00:20]}
29. Nxe4 {[%clk 0:00:17.8]} 29... Be5 {[%clk 0:00:16.8]} 30. Bxe5 {[%clk
0:00:15.9]} 30... Nxe5 {[%clk 0:00:17.7]} 31. Rxf8+ {[%clk 0:00:13.6]} 31...
Rxf8 {[%clk 0:00:18.6]} 32. Rd5 {[%clk 0:00:14.2]} 32... Nc6 {[%clk 0:00:16.3]}
33. Rd6 {[%clk 0:00:13]} 33... Na5 {[%clk 0:00:16.7]} 34. Rd7 {[%clk 0:00:12.9]}
34... Rf7 {[%clk 0:00:16.6]} 35. Rd8+ {[%clk 0:00:08]} 35... Kg7 {[%clk
0:00:17]} 36. Kg2 {[%clk 0:00:08.4]} 36... Re7 {[%clk 0:00:17.5]} 37. Kf3 {[%clk
0:00:08.6]} 37... Nc6 {[%clk 0:00:18.1]} 38. Rc8 {[%clk 0:00:03.2]} 38... Ne5+
{[%clk 0:00:18.2]} 39. Kf4 {[%clk 0:00:04]} 39... Nd3+ {[%clk 0:00:17.9]} 40.
Ke3 {[%clk 0:00:04.6]} 40... Nc5 {[%clk 0:00:17.9]} 41. Rxc5 {[%clk 0:00:01.5]}
41... bxc5 {[%clk 0:00:18.8]} 42. Kd3 {[%clk 0:00:02.4]} 42... Re5 {[%clk
0:00:18]} 43. a4 {[%clk 0:00:01.7]} 43... Kf7 {[%clk 0:00:17.8]} 44. Nd6+ {[%clk
0:00:01.9]} 44... Ke6 {[%clk 0:00:17.9]} 45. Nc8 {[%clk 0:00:02.1]} 45... a6
{[%clk 0:00:16.6]} 46. Kc4 {[%clk 0:00:02]} 46... Kd7 {[%clk 0:00:16]} 47. Nb6+
{[%clk 0:00:02.3]} 47... Kc6 {[%clk 0:00:16.6]} 48. a5 {[%clk 0:00:03.2]} 48...
Re4+ {[%clk 0:00:16.6]} 49. Kd3 {[%clk 0:00:03.3]} 49... Re8 {[%clk 0:00:17.1]}
50. Nc4 {[%clk 0:00:03.4]} 50... Rd8+ {[%clk 0:00:17.6]} 51. Kc2 {[%clk
0:00:04.1]} 51... Kb5 {[%clk 0:00:17.6]} 52. Kb3 {[%clk 0:00:04]} 52... Rd1
{[%clk 0:00:16.5]} 53. Ne5 {[%clk 0:00:01.6]} 53... Kxa5 {[%clk 0:00:15.6]} 54.
Kc4 {[%clk 0:00:02.5]} 54... Kb6 {[%clk 0:00:15.4]} 55. Ng4 {[%clk 0:00:01.5]}
55... Kc6 {[%clk 0:00:14.9]} 56. Nf6 {[%clk 0:00:01.9]} 56... a5 {[%clk
0:00:14.2]} 57. Nxh7 {[%clk 0:00:01.8]} 57... a4 {[%clk 0:00:14.7]} 58. Nf8
{[%clk 0:00:02.3]} 58... a3 {[%clk 0:00:14.8]} 59. Kb3 {[%clk 0:00:02.4]} 59...
g5 {[%clk 0:00:08]} 60. Nh7 {[%clk 0:00:01.4]} 60... g4 {[%clk 0:00:08.1]} 61.
Nf6 {[%clk 0:00:02.1]} 61... Rd2 {[%clk 0:00:06.6]} 62. Kxa3 {[%clk 0:00:01.5]}
62... Rxh2 {[%clk 0:00:06.1]} 63. Nxg4 {[%clk 0:00:02.2]} 63... Rg2 {[%clk
0:00:06.5]} 64. Ne5+ {[%clk 0:00:02.5]} 64... Kd5 {[%clk 0:00:06.5]} 65. Nd7
{[%clk 0:00:01.8]} 65... Rxg3 {[%clk 0:00:06.7]} 66. Kb3 {[%clk 0:00:02.7]}
66... c4+ {[%clk 0:00:06.5]} 67. Kb4 {[%clk 0:00:03.1]} 67... Rg6 {[%clk
0:00:06]} 68. Kb5 {[%clk 0:00:02.3]} 68... Rd6 {[%clk 0:00:05.7]} 69. Nb6+
{[%clk 0:00:01.8]} 69... Rxb6+ {[%clk 0:00:02.7]} 70. Kxb6 {[%clk 0:00:02.1]}
70... Kd6 {[%clk 0:00:03.2]} 71. Kb5 {[%clk 0:00:02.5]} 71... Kd5 {[%clk
0:00:03.1]} 72. Kb4 {[%clk 0:00:03.1]} 72... Kd6 {[%clk 0:00:03.6]} 73. Kxc4
{[%clk 0:00:04]} 73... Kc6 {[%clk 0:00:04.2]} 74. Kd4 {[%clk 0:00:04.5]} 74...
Kd6 {[%clk 0:00:04.8]} 75. c4 {[%clk 0:00:05.4]} 75... Kc6 {[%clk 0:00:05.4]}
76. c5 {[%clk 0:00:06.3]} 76... Kc7 {[%clk 0:00:05.8]} 77. Kd5 {[%clk
0:00:06.7]} 77... Kd7 {[%clk 0:00:05.4]} 78. c6+ {[%clk 0:00:07.6]} 78... Kc7
{[%clk 0:00:05.8]} 79. Kc5 {[%clk 0:00:08.3]} 79... Kc8 {[%clk 0:00:06.1]} 80.
Kd6 {[%clk 0:00:09.2]} 80... Kd8 {[%clk 0:00:06.7]} 81. c7+ {[%clk 0:00:10.1]}
81... Kc8 {[%clk 0:00:07.3]} 82. Kc6 {[%clk 0:00:10.9]} 1/2-1/2

[Event "*** Titled Tuesday Blitz"]
[Site "Chess.com"]
[Date "2020.05.19"]
[Round "9"]
[White "GMCarbone"]
[Black "GameOverBro"]
[Result "0-1"]
[WhiteElo "2340"]
[BlackElo "2514"]
[TimeControl "180+1"]
[EndTime "13:48:30 PDT"]
[Termination "GameOverBro won by checkmate"]

1. d4 {[%clk 0:03:00.9]} 1... d6 {[%clk 0:03:00]} 2. c4 {[%clk 0:03:01]} 2...
Nf6 {[%clk 0:03:00.3]} 3. Nc3 {[%clk 0:03:00.5]} 3... Nbd7 {[%clk 0:03:00.9]} 4.
Nf3 {[%clk 0:03:00.4]} 4... e5 {[%clk 0:03:01.5]} 5. e4 {[%clk 0:03:00.8]} 5...
Be7 {[%clk 0:03:02]} 6. g3 {[%clk 0:03:00.5]} 6... c6 {[%clk 0:03:01.2]} 7. Bg2
{[%clk 0:03:00.1]} 7... O-O {[%clk 0:03:01.9]} 8. O-O {[%clk 0:02:59.3]} 8... a6
{[%clk 0:03:02.6]} 9. h3 {[%clk 0:02:57.3]} 9... b5 {[%clk 0:03:03.1]} 10. cxb5
{[%clk 0:02:53.9]} 10... axb5 {[%clk 0:03:02.8]} 11. Re1 {[%clk 0:02:48.8]}
11... Bb7 {[%clk 0:03:01.2]} 12. dxe5 {[%clk 0:02:42.4]} 12... dxe5 {[%clk
0:02:57.4]} 13. Nh4 {[%clk 0:02:41.6]} 13... g6 {[%clk 0:02:51.6]} 14. Bg5
{[%clk 0:02:35.6]} 14... Qb6 {[%clk 0:02:37.8]} 15. Qf3 {[%clk 0:02:33.3]} 15...
b4 {[%clk 0:02:34]} 16. Nb1 {[%clk 0:02:18.5]} 16... c5 {[%clk 0:02:34.3]} 17.
Nd2 {[%clk 0:02:18.4]} 17... Qe6 {[%clk 0:02:09.3]} 18. b3 {[%clk 0:02:03.9]}
18... Nb6 {[%clk 0:02:03.7]} 19. Bxf6 {[%clk 0:01:33.6]} 19... Bxf6 {[%clk
0:02:00.6]} 20. Qg4 {[%clk 0:01:26.8]} 20... Qxg4 {[%clk 0:01:46.1]} 21. hxg4
{[%clk 0:01:27.7]} 21... Rfd8 {[%clk 0:01:38.9]} 22. Nhf3 {[%clk 0:01:27.6]}
22... Rd3 {[%clk 0:01:20.9]} 23. Bf1 {[%clk 0:01:25.4]} 23... Rc3 {[%clk
0:01:20]} 24. g5 {[%clk 0:01:21.9]} 24... Bg7 {[%clk 0:01:18.3]} 25. Kg2 {[%clk
0:01:17.7]} 25... h6 {[%clk 0:01:14.4]} 26. gxh6 {[%clk 0:01:14.9]} 26... Bxh6
{[%clk 0:01:15.3]} 27. Nc4 {[%clk 0:01:15.4]} 27... Nxc4 {[%clk 0:01:08.5]} 28.
Bxc4 {[%clk 0:01:16.3]} 28... Re8 {[%clk 0:00:48.1]} 29. a3 {[%clk 0:01:12.5]}
29... Kg7 {[%clk 0:00:26.7]} 30. axb4 {[%clk 0:01:12.1]} 30... cxb4 {[%clk
0:00:26.6]} 31. Ra7 {[%clk 0:01:12.6]} 31... Re7 {[%clk 0:00:24.3]} 32. Nxe5
{[%clk 0:01:05.3]} 32... Bxe4+ {[%clk 0:00:24.3]} 33. Rxe4 {[%clk 0:01:04.4]}
33... Rxa7 {[%clk 0:00:25]} 34. f4 {[%clk 0:00:39.9]} 34... Kf8 {[%clk
0:00:24.8]} 35. Kh3 {[%clk 0:00:26.5]} 35... Bg7 {[%clk 0:00:24.8]} 36. Rd4
{[%clk 0:00:22.1]} 36... Bxe5 {[%clk 0:00:21.4]} 37. fxe5 {[%clk 0:00:23]} 37...
Re7 {[%clk 0:00:19.6]} 38. Rd8+ {[%clk 0:00:18.7]} 38... Kg7 {[%clk 0:00:19.6]}
39. Rd5 {[%clk 0:00:18.9]} 39... Re3 {[%clk 0:00:18.3]} 40. Rb5 {[%clk
0:00:18.7]} 40... R7xe5 {[%clk 0:00:18.1]} 41. Rxb4 {[%clk 0:00:19]} 41... Rg5
{[%clk 0:00:18.1]} 42. Rb7 {[%clk 0:00:17.1]} 42... Rgxg3+ {[%clk 0:00:16.8]}
43. Kh2 {[%clk 0:00:17.4]} 43... Rgf3 {[%clk 0:00:17.3]} 44. Kg2 {[%clk
0:00:17.1]} 44... Rf4 {[%clk 0:00:17.3]} 45. Bd5 {[%clk 0:00:15.5]} 45... g5
{[%clk 0:00:16.9]} 46. b4 {[%clk 0:00:15.1]} 46... Re2+ {[%clk 0:00:16.3]} 47.
Kg3 {[%clk 0:00:14.9]} 47... Rb2 {[%clk 0:00:17.2]} 48. b5 {[%clk 0:00:14.7]}
48... Rd2 {[%clk 0:00:12.3]} 49. Bc6 {[%clk 0:00:12.5]} 49... Rd3+ {[%clk
0:00:11.9]} 50. Kg2 {[%clk 0:00:13]} 50... Rb4 {[%clk 0:00:10.1]} 51. b6 {[%clk
0:00:13]} 51... Rd2+ {[%clk 0:00:09.8]} 52. Kf3 {[%clk 0:00:12.5]} 52... Rd3+
{[%clk 0:00:09.6]} 53. Ke2 {[%clk 0:00:12.7]} 53... Rc3 {[%clk 0:00:09.9]} 54.
Bd5 {[%clk 0:00:13.1]} 54... Rb2+ {[%clk 0:00:09.3]} 55. Kd1 {[%clk 0:00:13.7]}
55... Rg3 {[%clk 0:00:08.3]} 56. Rxf7+ {[%clk 0:00:12.4]} 56... Kg6 {[%clk
0:00:08.6]} 57. Kc1 {[%clk 0:00:12.8]} 57... Rxb6 {[%clk 0:00:07.9]} 58. Rf2
{[%clk 0:00:07.5]} 58... Rd6 {[%clk 0:00:07.1]} 59. Be4+ {[%clk 0:00:07]} 59...
Kh5 {[%clk 0:00:06.3]} 60. Kc2 {[%clk 0:00:07.9]} 60... Kg4 {[%clk 0:00:06.4]}
61. Bg6 {[%clk 0:00:06.3]} 61... Re3 {[%clk 0:00:04.9]} 62. Bf7 {[%clk
0:00:04.3]} 62... Re4 {[%clk 0:00:01.7]} 63. Bb3 {[%clk 0:00:03.9]} 63... Rf4
{[%clk 0:00:01.8]} 64. Rg2+ {[%clk 0:00:03.8]} 64... Kf5 {[%clk 0:00:02.7]} 65.
Kc3 {[%clk 0:00:03.4]} 65... Rc6+ {[%clk 0:00:03.1]} 66. Kb2 {[%clk 0:00:03.5]}
66... Rb6 {[%clk 0:00:03.6]} 67. Ka3 {[%clk 0:00:02.8]} 67... Rf3 {[%clk
0:00:03.9]} 68. Rb2 {[%clk 0:00:01.1]} 68... Rbxb3+ {[%clk 0:00:04.8]} 69. Rxb3
{[%clk 0:00:02]} 69... Rxb3+ {[%clk 0:00:05.2]} 70. Kxb3 {[%clk 0:00:02.9]}
70... g4 {[%clk 0:00:05.5]} 71. Kc4 {[%clk 0:00:03.8]} 71... g3 {[%clk
0:00:06.4]} 72. Kd5 {[%clk 0:00:04.7]} 72... g2 {[%clk 0:00:07.3]} 73. Kd6
{[%clk 0:00:05.6]} 73... g1=Q {[%clk 0:00:08.2]} 74. Ke7 {[%clk 0:00:06.5]}
74... Qg4 {[%clk 0:00:09.1]} 75. Ke8 {[%clk 0:00:07.4]} 75... Qe4+ {[%clk
0:00:10]} 76. Kd8 {[%clk 0:00:07.4]} 76... Qe6 {[%clk 0:00:10.1]} 77. Kc7 {[%clk
0:00:07]} 77... Ke5 {[%clk 0:00:11]} 78. Kb7 {[%clk 0:00:07.9]} 78... Kd5 {[%clk
0:00:11.5]} 79. Ka7 {[%clk 0:00:08.8]} 79... Qc6 {[%clk 0:00:11.6]} 80. Kb8
{[%clk 0:00:09]} 80... Qd7 {[%clk 0:00:11.6]} 81. Ka8 {[%clk 0:00:08.8]} 81...
Kc6 {[%clk 0:00:12.5]} 82. Kb8 {[%clk 0:00:09.7]} 82... Qb7# {[%clk 0:00:13.4]}
0-1

[Event "*** Titled Tuesday Blitz"]
[Site "Chess.com"]
[Date "2020.05.19"]
[Round "9"]
[White "Fusikk"]
[Black "ElGasanov"]
[Result "0-1"]
[WhiteElo "2590"]
[BlackElo "2755"]
[TimeControl "180+1"]
[EndTime "13:48:58 PDT"]
[Termination "ElGasanov won by resignation"]

1. d4 {[%clk 0:03:00.9]} 1... d6 {[%clk 0:02:58.8]} 2. c4 {[%clk 0:02:57.9]}
2... e5 {[%clk 0:02:55.5]} 3. d5 {[%clk 0:02:57.9]} 3... Nf6 {[%clk 0:02:50.2]}
4. Nc3 {[%clk 0:02:56.9]} 4... Bf5 {[%clk 0:02:50.2]} 5. f3 {[%clk 0:02:49.3]}
5... e4 {[%clk 0:02:49.9]} 6. Qd4 {[%clk 0:02:40.8]} 6... c5 {[%clk 0:02:44.1]}
7. Qe3 {[%clk 0:02:32.6]} 7... Qe7 {[%clk 0:02:33]} 8. g4 {[%clk 0:02:12.3]}
8... Bg6 {[%clk 0:02:33.3]} 9. g5 {[%clk 0:02:11.2]} 9... Nfd7 {[%clk
0:02:26.9]} 10. f4 {[%clk 0:02:08.1]} 10... Na6 {[%clk 0:02:07.6]} 11. a3 {[%clk
0:02:03.6]} 11... h6 {[%clk 0:01:54.4]} 12. Nh3 {[%clk 0:01:27.3]} 12... Bf5
{[%clk 0:01:34]} 13. Bg2 {[%clk 0:01:24.3]} 13... hxg5 {[%clk 0:01:28.4]} 14.
Nxg5 {[%clk 0:01:23.6]} 14... Nf6 {[%clk 0:01:25.8]} 15. Ngxe4 {[%clk
0:01:17.1]} 15... O-O-O {[%clk 0:01:24.8]} 16. Ng3 {[%clk 0:01:12.3]} 16... Qd7
{[%clk 0:01:24.2]} 17. Nxf5 {[%clk 0:01:07.2]} 17... Qxf5 {[%clk 0:01:24.7]} 18.
Qd3 {[%clk 0:00:50.7]} 18... Qxd3 {[%clk 0:00:58.4]} 19. exd3 {[%clk 0:00:51.6]}
19... Re8+ {[%clk 0:00:59]} 20. Kf2 {[%clk 0:00:49]} 20... Ng4+ {[%clk
0:00:58.8]} 21. Kf3 {[%clk 0:00:43.3]} 21... f5 {[%clk 0:00:50.3]} 22. h3 {[%clk
0:00:43.2]} 22... Nf6 {[%clk 0:00:47.6]} 23. Bd2 {[%clk 0:00:43.6]} 23... g6
{[%clk 0:00:40.8]} 24. Nb5 {[%clk 0:00:42.5]} 24... Nc7 {[%clk 0:00:34.9]} 25.
Bc3 {[%clk 0:00:34.7]} 25... Nxb5 {[%clk 0:00:25.1]} 26. cxb5 {[%clk 0:00:30.8]}
26... Bg7 {[%clk 0:00:20.5]} 27. Kf2 {[%clk 0:00:31]} 27... Nh5 {[%clk
0:00:19.2]} 28. Bxg7 {[%clk 0:00:29.1]} 28... Nxg7 {[%clk 0:00:20.1]} 29. Rae1
{[%clk 0:00:29.3]} 29... Kd7 {[%clk 0:00:19.5]} 30. Bf3 {[%clk 0:00:26.2]} 30...
Rxe1 {[%clk 0:00:19.2]} 31. Kxe1 {[%clk 0:00:26.3]} 31... Ne8 {[%clk 0:00:17.5]}
32. Kf2 {[%clk 0:00:25.1]} 32... Nf6 {[%clk 0:00:16.6]} 33. Kg3 {[%clk
0:00:24.4]} 33... Re8 {[%clk 0:00:12.5]} 34. Kf2 {[%clk 0:00:22.4]} 34... Ke7
{[%clk 0:00:12.5]} 35. Rc1 {[%clk 0:00:19.1]} 35... b6 {[%clk 0:00:10.8]} 36. b4
{[%clk 0:00:18.7]} 36... Kf7 {[%clk 0:00:08.7]} 37. bxc5 {[%clk 0:00:18.4]}
37... dxc5 {[%clk 0:00:09.6]} 38. a4 {[%clk 0:00:15.5]} 38... Rd8 {[%clk
0:00:09.3]} 39. a5 {[%clk 0:00:15.5]} 39... Nxd5 {[%clk 0:00:09.6]} 40. axb6
{[%clk 0:00:15.3]} 40... axb6 {[%clk 0:00:09.7]} 41. Bxd5+ {[%clk 0:00:15.3]}
41... Rxd5 {[%clk 0:00:10.6]} 42. Ke3 {[%clk 0:00:15.8]} 42... Rd4 {[%clk
0:00:08.1]} 43. Ra1 {[%clk 0:00:16.1]} 43... Rb4 {[%clk 0:00:08.5]} 44. Ra7+
{[%clk 0:00:16.2]} 44... Kf6 {[%clk 0:00:08.1]} 45. Rd7 {[%clk 0:00:15.9]} 45...
Rxb5 {[%clk 0:00:08]} 46. Rd6+ {[%clk 0:00:16.4]} 46... Kf7 {[%clk 0:00:08.5]}
47. Rd7+ {[%clk 0:00:16.8]} 47... Ke6 {[%clk 0:00:09]} 48. Rg7 {[%clk
0:00:16.4]} 48... Kf6 {[%clk 0:00:09.4]} 49. Rc7 {[%clk 0:00:16.9]} 49... Rb4
{[%clk 0:00:08.2]} 50. Rc6+ {[%clk 0:00:17.3]} 50... Kg7 {[%clk 0:00:08.3]} 51.
h4 {[%clk 0:00:16.4]} 51... Rb3 {[%clk 0:00:06.6]} 52. Kd2 {[%clk 0:00:15.2]}
52... Kh6 {[%clk 0:00:06]} 53. Rd6 {[%clk 0:00:14.5]} 53... Rb4 {[%clk
0:00:05.8]} 54. Ke3 {[%clk 0:00:14.5]} 54... Kh5 {[%clk 0:00:06.3]} 55. Rc6
{[%clk 0:00:14.3]} 55... Rb1 {[%clk 0:00:04.9]} 56. Kd2 {[%clk 0:00:14]} 56...
Rb2+ {[%clk 0:00:04.2]} 57. Ke3 {[%clk 0:00:14.1]} 57... Rb4 {[%clk 0:00:05.1]}
58. Rd6 {[%clk 0:00:12.6]} 58... Kh6 {[%clk 0:00:05.6]} 59. Rc6 {[%clk
0:00:12.7]} 59... Kh5 {[%clk 0:00:05.3]} 60. Rd6 {[%clk 0:00:12.8]} 60... c4
{[%clk 0:00:05.7]} 61. dxc4 {[%clk 0:00:09.2]} 61... Rxc4 {[%clk 0:00:04.7]} 62.
Rxb6 {[%clk 0:00:09.1]} 62... Rc3+ {[%clk 0:00:05.2]} 63. Kf2 {[%clk 0:00:08.9]}
63... Rh3 {[%clk 0:00:04.7]} 64. Kg2 {[%clk 0:00:05]} 64... Rxh4 {[%clk
0:00:03.1]} 65. Kg3 {[%clk 0:00:05.3]} 65... Rg4+ {[%clk 0:00:03.6]} 66. Kf3
{[%clk 0:00:05.7]} 66... Rg1 {[%clk 0:00:03.7]} 67. Rb8 {[%clk 0:00:06.1]} 67...
Rf1+ {[%clk 0:00:02.9]} 68. Kg2 {[%clk 0:00:05.9]} 68... Rxf4 {[%clk 0:00:02.6]}
69. Kg3 {[%clk 0:00:06.2]} 69... Kg5 {[%clk 0:00:02.3]} 70. Rh8 {[%clk
0:00:06.6]} 70... Rg4+ {[%clk 0:00:03.2]} 71. Kh3 {[%clk 0:00:06.4]} 71... Rf4
{[%clk 0:00:02.8]} 72. Ra8 {[%clk 0:00:07.3]} 72... Rf3+ {[%clk 0:00:02.6]} 73.
Kg2 {[%clk 0:00:08.2]} 73... Kg4 {[%clk 0:00:03.1]} 74. Ra4+ {[%clk 0:00:08.7]}
74... f4 {[%clk 0:00:03.5]} 75. Ra5 {[%clk 0:00:09.6]} 75... Rg3+ {[%clk
0:00:04]} 76. Kf2 {[%clk 0:00:09.4]} 76... g5 {[%clk 0:00:04.9]} 77. Rb5 {[%clk
0:00:08.5]} 77... Rf3+ {[%clk 0:00:05.2]} 78. Kg2 {[%clk 0:00:08.3]} 78... Ra3
{[%clk 0:00:05.9]} 79. Rb2 {[%clk 0:00:06.7]} 79... Kh4 {[%clk 0:00:05.9]} 80.
Kh2 {[%clk 0:00:06.7]} 80... g4 {[%clk 0:00:06]} 81. Kg2 {[%clk 0:00:06.6]}
81... g3 {[%clk 0:00:06]} 82. Rb4 {[%clk 0:00:06]} 82... Ra2+ {[%clk 0:00:06.2]}
83. Kg1 {[%clk 0:00:06.4]} 83... Kg4 {[%clk 0:00:05.8]} 84. Rc4 {[%clk
0:00:05.9]} 84... Kh3 {[%clk 0:00:03.6]} 85. Rxf4 {[%clk 0:00:05.5]} 85... Ra1+
{[%clk 0:00:03.8]} 86. Rf1 {[%clk 0:00:05.5]} 86... Rxf1+ {[%clk 0:00:04.2]} 87.
Kxf1 {[%clk 0:00:06.4]} 87... Kh2 {[%clk 0:00:04.7]} 88. Ke2 {[%clk 0:00:07.3]}
88... g2 {[%clk 0:00:05.4]} 0-1

[Event "*** Titled Tuesday Blitz"]
[Site "Chess.com"]
[Date "2020.05.19"]
[Round "9"]
[White "Twitch_ElhamBlitz05"]
[Black "Baby_Shak"]
[Result "1-0"]
[WhiteElo "2778"]
[BlackElo "2627"]
[TimeControl "180+1"]
[EndTime "13:49:21 PDT"]
[Termination "Twitch_ElhamBlitz05 won by checkmate"]

1. e4 {[%clk 0:03:00.9]} 1... e5 {[%clk 0:02:57.6]} 2. Nc3 {[%clk 0:03:00.2]}
2... Nf6 {[%clk 0:02:55.9]} 3. Bc4 {[%clk 0:03:00.7]} 3... Nc6 {[%clk
0:02:53.3]} 4. d3 {[%clk 0:03:00.6]} 4... Be7 {[%clk 0:02:51.6]} 5. f4 {[%clk
0:03:00.5]} 5... d6 {[%clk 0:02:47.8]} 6. Nf3 {[%clk 0:03:00]} 6... Bg4 {[%clk
0:02:48.1]} 7. O-O {[%clk 0:02:41]} 7... Nd4 {[%clk 0:02:33.8]} 8. fxe5 {[%clk
0:02:37.6]} 8... Bxf3 {[%clk 0:02:32.8]} 9. gxf3 {[%clk 0:02:28.4]} 9... dxe5
{[%clk 0:02:32]} 10. f4 {[%clk 0:02:29]} 10... Bd6 {[%clk 0:02:09.7]} 11. f5
{[%clk 0:02:11.2]} 11... Qd7 {[%clk 0:02:04.4]} 12. Ne2 {[%clk 0:02:04.1]} 12...
Bc5 {[%clk 0:01:56.2]} 13. Kh1 {[%clk 0:01:57.4]} 13... O-O-O {[%clk 0:01:54.4]}
14. Nxd4 {[%clk 0:01:54.1]} 14... Bxd4 {[%clk 0:01:51.6]} 15. Qe2 {[%clk
0:01:49.3]} 15... h6 {[%clk 0:01:42.2]} 16. Be3 {[%clk 0:01:42.9]} 16... Bxe3
{[%clk 0:01:41.2]} 17. Qxe3 {[%clk 0:01:43.8]} 17... Kb8 {[%clk 0:01:41.5]} 18.
a4 {[%clk 0:01:42.1]} 18... Nh5 {[%clk 0:01:28.1]} 19. a5 {[%clk 0:01:33.9]}
19... Nf4 {[%clk 0:01:26.4]} 20. a6 {[%clk 0:01:33.2]} 20... b6 {[%clk
0:01:25.6]} 21. Rg1 {[%clk 0:01:26.5]} 21... g6 {[%clk 0:01:22.2]} 22. fxg6
{[%clk 0:01:18.8]} 22... fxg6 {[%clk 0:01:21.7]} 23. Raf1 {[%clk 0:01:15.9]}
23... g5 {[%clk 0:01:20.5]} 24. Qf3 {[%clk 0:01:05.2]} 24... Rhf8 {[%clk
0:01:16.1]} 25. Qg4 {[%clk 0:01:00.7]} 25... Qd4 {[%clk 0:01:07]} 26. c3 {[%clk
0:00:52]} 26... Qd6 {[%clk 0:00:57.1]} 27. Rf3 {[%clk 0:00:50.8]} 27... Rf6
{[%clk 0:00:51.4]} 28. Rgf1 {[%clk 0:00:47.1]} 28... Rdf8 {[%clk 0:00:50.5]} 29.
Qg1 {[%clk 0:00:37.1]} 29... Qc6 {[%clk 0:00:42.8]} 30. Qe3 {[%clk 0:00:31.1]}
30... g4 {[%clk 0:00:39.2]} 31. R3f2 {[%clk 0:00:23.9]} 31... h5 {[%clk
0:00:37.1]} 32. Qg3 {[%clk 0:00:18.8]} 32... Qc5 {[%clk 0:00:23.5]} 33. b4
{[%clk 0:00:14.6]} 33... Qd6 {[%clk 0:00:20.4]} 34. Qe3 {[%clk 0:00:13]} 34...
Qc6 {[%clk 0:00:19.9]} 35. b5 {[%clk 0:00:08.2]} 35... Qd6 {[%clk 0:00:17.7]}
36. d4 {[%clk 0:00:08]} 36... h4 {[%clk 0:00:18]} 37. d5 {[%clk 0:00:03]} 37...
g3 {[%clk 0:00:15.9]} 38. hxg3 {[%clk 0:00:03.3]} 38... hxg3 {[%clk 0:00:16.8]}
39. Qxg3 {[%clk 0:00:04]} 39... Rh6+ {[%clk 0:00:16.7]} 40. Rh2 {[%clk
0:00:03.9]} 40... Rg6 {[%clk 0:00:16]} 41. Qf3 {[%clk 0:00:02.7]} 41... Rfg8
{[%clk 0:00:15.7]} 42. Bb3 {[%clk 0:00:02.5]} 42... Qc5 {[%clk 0:00:15.6]} 43.
Qf2 {[%clk 0:00:01.5]} 43... Qxc3 {[%clk 0:00:14.5]} 44. Bd1 {[%clk 0:00:02.2]}
44... Qc4 {[%clk 0:00:08.8]} 45. Bf3 {[%clk 0:00:02.4]} 45... Qxb5 {[%clk
0:00:08.8]} 46. Re1 {[%clk 0:00:02.2]} 46... Nd3 {[%clk 0:00:08.6]} 47. Qf1
{[%clk 0:00:02.6]} 47... Nxe1 {[%clk 0:00:08.7]} 48. Qxe1 {[%clk 0:00:03.1]}
48... Rg1+ {[%clk 0:00:06.3]} 49. Qxg1 {[%clk 0:00:03.3]} 49... Rxg1+ {[%clk
0:00:07.2]} 50. Kxg1 {[%clk 0:00:04.2]} 50... Qxa6 {[%clk 0:00:06.8]} 51. Bg4
{[%clk 0:00:04.5]} 51... Qa1+ {[%clk 0:00:06.5]} 52. Kg2 {[%clk 0:00:04.9]}
52... Qb2+ {[%clk 0:00:06]} 53. Kg3 {[%clk 0:00:04.9]} 53... Qc3+ {[%clk
0:00:06.4]} 54. Kh4 {[%clk 0:00:04.1]} 54... Kb7 {[%clk 0:00:07.3]} 55. Kg5
{[%clk 0:00:02.4]} 55... b5 {[%clk 0:00:07.4]} 56. Bd7 {[%clk 0:00:01.9]} 56...
b4 {[%clk 0:00:07]} 57. Bc6+ {[%clk 0:00:01.9]} 57... Kb6 {[%clk 0:00:07.2]} 58.
Rh8 {[%clk 0:00:02.8]} 58... Qg3+ {[%clk 0:00:07.2]} 59. Kf5 {[%clk 0:00:02.9]}
59... Qf4+ {[%clk 0:00:06.4]} 60. Ke6 {[%clk 0:00:03.2]} 60... Qxe4 {[%clk
0:00:06.5]} 61. Rb8+ {[%clk 0:00:02.5]} 61... Ka6 {[%clk 0:00:06.3]} 62. Kd7
{[%clk 0:00:02.4]} 62... Qf5+ {[%clk 0:00:06]} 63. Kxc7 {[%clk 0:00:02.7]} 63...
Qf7+ {[%clk 0:00:06.2]} 64. Kd6 {[%clk 0:00:02.3]} 64... e4 {[%clk 0:00:05.9]}
65. Rc8 {[%clk 0:00:01.8]} 65... Qf4+ {[%clk 0:00:05.9]} 66. Kd7 {[%clk
0:00:01.9]} 66... Qf7+ {[%clk 0:00:05.9]} 67. Kd6 {[%clk 0:00:02]} 67... Qf6+
{[%clk 0:00:06.3]} 68. Kc7 {[%clk 0:00:02.9]} 68... e3 {[%clk 0:00:05.6]} 69. d6
{[%clk 0:00:03.2]} 69... e2 {[%clk 0:00:04.7]} 70. Re8 {[%clk 0:00:02.6]} 70...
Qf7+ {[%clk 0:00:03.7]} 71. d7 {[%clk 0:00:02.4]} 71... b3 {[%clk 0:00:03.3]}
72. Kc8 {[%clk 0:00:02.4]} 72... Qf5 {[%clk 0:00:02.3]} 73. Kc7 {[%clk
0:00:02.4]} 73... Qf4+ {[%clk 0:00:02.8]} 74. Kc8 {[%clk 0:00:02.7]} 74... Qf5
{[%clk 0:00:03.4]} 75. Re4 {[%clk 0:00:02.6]} 75... e1=Q {[%clk 0:00:04.3]} 76.
Rxe1 {[%clk 0:00:02.4]} 76... Qa5 {[%clk 0:00:04.2]} 77. d8=Q {[%clk 0:00:02]}
77... Qf5+ {[%clk 0:00:05]} 78. Qd7 {[%clk 0:00:02]} 78... Qf8+ {[%clk
0:00:05.3]} 79. Kc7 {[%clk 0:00:01.6]} 79... Qf5 {[%clk 0:00:05.8]} 80. Qd6
{[%clk 0:00:02.5]} 80... Qf7+ {[%clk 0:00:04.8]} 81. Bd7+ {[%clk 0:00:02.6]}
81... Ka5 {[%clk 0:00:02.6]} 82. Ra1# {[%clk 0:00:03]} 1-0